[Event "Saint Louis Norm Congress-IM 2022"]
[Site "Saint Louis"]
[Date "2022.05.22"]
[Round "6.4"]
[White "Lee, Alice"]
[Black "Grabinsky, Aaron"]
[Result "1/2-1/2"]
[ECO "E11"]
[WhiteElo "2344"]
[BlackElo "2401"]
[Annotator "TA"]
[PlyCount "215"]
[EventDate "2022.05.20"]
[EventType "tourn"]
[EventCountry "USA"]
[SourceTitle "playchess.com"]
[Source "ChessBase"]
[SourceQuality "1"]
[TimeControl "5400+30"]

{[%evp 26,215,60,56,62,48,61,31,42,31,33,12,25,-19,-7,-7,-19,-27,-22,-53,-35,-34,0,-56,0,-37,-18,-39,-24,-34,0,0,0,-5,36,0,64,56,85,52,64,23,40,-8,20,0,1,0,29,8,70,8,54,0,32,-6,0,0,7,0,2,2,3,-41,-41,-41,-41,-41,-41,-41,-41,-49,-49,-47,-31,-31,-26,-31,-29,-41,-26,-33,-33,-33,-35,-41,-41,-106,-106,-135,-105,-119,-105,-126,-108,-109,-109,-119,-85,-105,-105,-110,-80,-119,-94,-93,-77,-84,-77,-115,-83,-121,-84,-85,-84,-85,-84,-73,-85,-85,-72,-85,-85,-85,-85,-109,-85,-85,-79,-126,0,-85,-85,-81,-48,-119,-8,-71,-8,-123,-87,-122,-46,-123,-8,-123,-22,-123,12,-117,-30,-91,-84,-77,-77,-84,-84,-84,-84,-91,-91,-90,-73,-71,-63,-79,-10,-17,16,-14,0,0,0,0,0,0,0,-42,0,0,0,0,0,0,0,0,0,0,0,0,0,0]} 1. d4 {[%emt 0:00:02]} e6 {[%emt 0:00:07]} 2. c4 {[%emt 0:00:05]} Nf6 {[%emt 0:00:05]} 3. Nf3 {[%emt 0:00:06]} Bb4+ {[%emt 0:00:12]} 4. Bd2 {[%emt 0:00:10]} Bxd2+ {[%emt 0:00:37]} 5. Qxd2 {[%emt 0:00:06]} d6 {[%emt 0:01:11]} 6. Nc3 {[%emt 0:00:10]} Nbd7 {[%emt 0:00:16]} 7. e4 {[%emt 0:03:57]} e5 {[%emt 0:04:51]} 8. Be2 {[%emt 0:08:28]} O-O {[%emt 0:00:40]} 9. O-O {[%emt 0:01:32]} c6 {[%emt 0:01:44]} 10. Rfd1 {[%emt 0:05:53]} Re8 {[%emt 0:02:18]} 11. Qc2 {[%emt 0:02:42]} a5 {[%emt 0:01:41]} 12. Rd2 {[%emt 0:07:11]} Qe7 {[%emt 0:03:02]} 13. Rad1 {[%emt 0:05:03]} g6 {[%emt 0:01:32]} 14. d5 {[%emt 0:04:03]} c5 {[%emt 0:00:51]} 15. Ne1 {[%emt 0:00:29]} Nb6 {[%emt 0:06:16]} 16. Nb5 {[%emt 0:01:47]} Rf8 {[%emt 0:01:24]} 17. Qd3 {[%emt 0:14:21]} Ne8 {[%emt 0:08:18]} 18. Bf1 {[%emt 0:02:52]} f5 {[%emt 0:00:33]} 19. f3 {[%emt 0:00:35]} Bd7 {[%emt 0:06:24]} 20. Nc3 {[%emt 0:01:12]} f4 {[%emt 0:01:02]} 21. Rc1 {[%emt 0:03:39]} Nf6 {[%emt 0:01:57]} 22. Kf2 {[%emt 0:01:50]} Qe8 {[%emt 0:03:46]} 23. Nc2 {[%emt 0:02:52]} g5 {[%emt 0:01:33]} 24. h3 {[%emt 0:02:27]} (24. Na3 $11) 24... Qh5 {[%emt 0:03:57]} (24... Na4 $15) 25. Ke1 {[%emt 0:01:57]} Ne8 {[%emt 0:06:45]} 26. Kd1 {[%emt 0:01:16]} Nc7 {[%emt 0:01:02]} 27. Na3 {[%emt 0:00:14]} (27. Rb1 {is more complex.} Na4 28. Qe2 Rfb8 29. Qf2) 27... Qe8 {[%emt 0:02:13]} (27... Na4 {keeps more tension.} 28. Ncb5 Bxb5 29. Nxb5 Nxb5 30. cxb5 Nb6) 28. Kc2 {[%emt 0:01:09]} Nc8 {[%emt 0:02:53]} 29. Kb1 {[%emt 0:00:59]} Na7 {[%emt 0:01:38]} 30. Qe2 {[%emt 0:02:40]} Kf7 {[%emt 0:01:45]} (30... h5 $11) 31. Qf2 {[%emt 0:04:07]} Ke7 {[%emt 0:00:51]} 32. Bd3 {[%emt 0:00:43]} Qg6 {[%emt 0:01:18]} 33. Rh1 {[%emt 0:04:34]} h5 {[%emt 0:00:13]} 34. Be2 {[%emt 0:00:54]} (34. g3 $14 {was preferrable.}) 34... Rh8 {[%emt 0:00:12]} 35. Rdd1 {[%emt 0:00:47]} Rag8 {[%emt 0:01:00]} 36. Rh2 {[%emt 0:03:34]} Ne8 {[%emt 0:02:06]} 37. Rdh1 {[%emt 0:01:03]} Rh7 {[%emt 0:01:23]} (37... h4 $11) 38. Nc2 {[%emt 0:00:59]} (38. Bd1 $14) 38... Rgh8 {[%emt 0:01:28]} (38... Nc7 $11 {is more appropriate.}) 39. a4 {[%emt 0:02:47]} (39. Rc1 $14) 39... Nf6 {[%emt 0:00:38]} 40. Ne1 {[%emt 0:01:26]} b6 {[%emt 0:04:10]} 41. Rg1 {[%emt 0:01:31]} Rg8 {[%emt 0:03:32]} 42. Rgh1 {[%emt 0:04:29]} Nc8 {[%emt 0:01:07]} 43. Nd3 {[%emt 0:00:45]} Rhg7 {[%emt 0:01:27]} 44. g4 {[%emt 0:01:34]} fxg3 {[%emt 0:05:06]} 45. Qxg3 {[%emt 0:00:02]} h4 {[%emt 0:00:42]} 46. Qf2 {[%emt 0:00:37]} Nh5 {[%emt 0:00:26]} 47. Bd1 {[%emt 0:00:59]} Qf6 {[%emt 0:00:56]} 48. Qd2 {[%emt 0:01:53]} Kd8 {[%emt 0:00:30]} 49. Rg1 {[%emt 0:00:48]} Nf4 {[%emt 0:02:04]} 50. Nf2 {[%emt 0:00:15]} Rf7 {[%emt 0:01:55]} 51. Rhh1 {[%emt 0:00:37]} Nh5 {[%emt 0:00:28]} 52. Re1 {[%emt 0:00:31]} Qg6 {[%emt 0:00:24]} 53. Qe3 {[%emt 0:00:49]} Ne7 {[%emt 0:00:45]} 54. Rh2 {[%emt 0:00:20]} Qf6 {[%emt 0:01:20]} 55. Ne2 {[%emt 0:00:49]} Ng3 {[%emt 0:05:07]} 56. Ng1 {[%emt 0:00:05]} (56. Qb3 $15 Kc7 57. Nc3) 56... Rgf8 $17 {[%emt 0:00:13]} 57. b3 {[%emt 0:00:27]} Qg7 {[%emt 0:00:43]} 58. Kc2 {[%emt 0:00:34]} Kc7 {[%emt 0:00:04]} 59. Kb1 {[%emt 0:00:16]} Rf4 {[%emt 0:00:19]} 60. Nd3 {[%emt 0:00:24]} R4f6 $1 {[%emt 0:00:10]} 61. Nf2 {[%emt 0:00:05]} Be8 {[%emt 0:00:32]} 62. Ng4 {[%emt 0:00:48]} Rf4 {[%emt 0:00:11]} 63. Nf2 {[%emt 0:00:10]} Bh5 {[%emt 0:00:14]} 64. Nd3 {[%emt 0:00:11]} R4f6 {[%emt 0:01:00]} 65. Nf2 {[%emt 0:00:39]} Ng8 {[%emt 0:01:01]} 66. Ka2 {[%emt 0:00:55]} R6f7 {[%emt 0:00:36]} 67. Kb1 {[%emt 0:00:24]} Nf6 {[%emt 0:00:08]} 68. Kc2 {[%emt 0:00:25]} Nh7 {[%emt 0:00:52]} 69. Kb1 {[%emt 0:00:28]} Rf6 {[%emt 0:00:10]} 70. Kc2 {[%emt 0:00:35]} R8f7 {[%emt 0:00:06]} 71. Ng4 {[%emt 0:01:15]} Rf4 {[%emt 0:00:17]} 72. Kc1 {[%emt 0:00:41]} Qf8 {[%emt 0:00:45]} 73. Qd3 {[%emt 0:00:12]} Nf6 {[%emt 0:00:50]} 74. Nf2 {[%emt 0:00:42]} Nd7 {[%emt 0:00:33]} 75. Ng4 {[%emt 0:00:12]} Bg6 {[%emt 0:00:56]} 76. Nf2 {[%emt 0:00:16]} Nf6 {[%emt 0:01:09]} 77. Kb2 {[%emt 0:01:09]} (77. Qd2 $142) 77... Bh5 {[%emt 0:01:02]} 78. Kc1 $1 {[%emt 0:00:28]} Qg7 {[%emt 0:01:06]} 79. Qe3 {[%emt 0:00:15]} Bg6 {[%emt 0:00:42]} 80. Bc2 {[%emt 0:00:30]} (80. Ne2 $15) 80... Qf8 {[%emt 0:00:29]} (80... Nd7 $17 81. Kb1 (81. Nd3 Bxe4 82. Nxf4 exf4 $17) 81... Bh5) 81. Kb2 {[%emt 0:00:33]} (81. Nd3 $11) 81... Nfh5 {[%emt 0:01:42]} (81... Nh7 $17) 82. Bd1 {[%emt 0:00:13]} (82. Nd3 $11) 82... Qg7 {[%emt 0:00:29]} 83. Ka2 {[%emt 0:00:42]} Rf8 {[%emt 0:00:07]} (83... Bh7 $1 $17) 84. Bc2 {[%emt 0:00:20]} (84. Nd3 $15) 84... Qf6 {[%emt 0:01:03]} ({Better is} 84... Be8 $17 85. Nd3 R4f7) 85. Bd1 {[%emt 0:00:50]} (85. Nd3 $11) 85... Qf7 {[%emt 0:00:16]} ({Black should try} 85... Qe7 $17 86. Ng4 Be8) 86. Kb2 {[%emt 0:00:23]} (86. Nd3 $11 {was the only way to keep the balance.}) 86... Ng7 {[%emt 0:00:39]} (86... Qh7 $17 87. Ng4 (87. Nd3 R4f7 $17) 87... Qe7) 87. Qd3 {[%emt 0:00:44]} (87. Nd3 $11) 87... N3h5 {[%emt 0:00:51]} (87... Qe7 $17 88. Qc3 N7h5) 88. Qe3 {[%emt 0:00:16]} (88. Rg2 $11 {keeps the balance.}) 88... Qe7 $1 $17 {[%emt 0:00:48]} 89. Nd3 {[%emt 0:00:23]} R4f7 {[%emt 0:00:19]} 90. Nf2 {[%emt 0:00:11]} Ng3 {[%emt 0:00:44]} 91. Bc2 {[%emt 0:00:35]} Bh5 {[%emt 0:00:32]} 92. Bd1 {[%emt 0:00:16]} Qf6 {[%emt 0:00:05]} 93. Ng4 {[%emt 0:00:37]} Qg6 {[%emt 0:00:51]} 94. Nf2 {[%emt 0:00:10]} Ne8 {[%emt 0:00:28]} 95. Ka2 {[%emt 0:00:26]} Rf4 {[%emt 0:00:28]} (95... Kb7 $17) 96. Nd3 $11 {[%emt 0:00:17]} Nf6 {[%emt 0:00:39]} 97. Nf2 {[%emt 0:01:14]} Qf7 {[%emt 0:00:15]} 98. Kb2 {[%emt 0:00:39]} Qg7 {[%emt 0:01:07]} 99. Ka2 {[%emt 0:00:12]} (99. Nd3 Nfxe4 $1 100. Ka3 (100. fxe4 $2 Rxe4 101. Qc1 Rxe1 $19) 100... Nf5 101. Nxf4 exf4 $15) 99... Rf7 {[%emt 0:00:21]} 100. Bc2 {[%emt 0:00:35]} Qf8 {[%emt 0:01:04]} 101. Bd1 {[%emt 0:00:17]} Qh6 {[%emt 0:01:58]} 102. Kb2 {[%emt 0:00:28]} Nh7 {[%emt 0:00:57]} 103. Qd3 {[%emt 0:00:23]} Qf8 {[%emt 0:00:15]} 104. Re3 {[%emt 0:00:51]} Bg6 {[%emt 0:01:27]} 105. Re1 {[%emt 0:00:48]} Nf6 {[%emt 0:00:57]} 106. Ka2 {[%emt 0:00:22]} ({Not} 106. Ne2 $2 Rxf3 $3 {[%mdl 512]} 107. Qxf3 Nfxe4 108. Nxg3 hxg3 $19) 106... Bh7 {[%emt 0:00:37]} 107. Kb2 {[%emt 0:00:17]} ({But not} 107. Ne2 {[#]} Rxf3 $1 108. Qxf3 Nfxe4 $17) 107... Nfh5 {[%emt 0:00:32]} 108. Qe3 {[%emt 0:00:19]} 1/2-1/2

[Event "Saint Louis Norm Congress-IM 2022"]
[Site "Saint Louis"]
[Date "2022.05.22"]
[Round "6.5"]
[White "Yu, Jennifer"]
[Black "Marek, Matyas"]
[Result "0-1"]
[ECO "A35"]
[WhiteElo "2257"]
[BlackElo "2363"]
[Annotator "TA"]
[PlyCount "67"]
[EventDate "2022.05.20"]
[EventType "tourn"]
[EventCountry "USA"]
[SourceTitle "playchess.com"]
[Source "ChessBase"]
[SourceQuality "1"]
[TimeControl "5400+30"]

{[%evp 10,67,7,-18,10,-37,-32,-57,-56,-54,-42,-39,-33,-33,-50,-53,-63,-37,-30,-78,-111,-104,-118,-98,-116,-89,-62,-68,-56,-47,-54,-53,-43,-64,-60,-63,-54,-115,-121,-130,-67,-55,-45,-105,-89,-88,-107,-101,-47,-35,-37,-193,0,0,64,-535,-534,-751,-634,-29994]} 1. c4 {[%emt 0:13:08]} c5 {[%emt 0:00:09]} 2. Nf3 {[%emt 0:00:53]} g6 {[%emt 0:02:07]} 3. Nc3 {[%emt 0:01:47]} Bg7 {[%emt 0:00:27]} 4. d4 {[%emt 0:04:19]} cxd4 {[%emt 0:00:05]} 5. Nxd4 {[%emt 0:00:03]} Nc6 {[%emt 0:00:04]} 6. Nb3 {[%emt 0:02:03]} a5 {[%emt 0:01:21] [#] A35: Symmetrical English: 2 Nc3 Nc6 3 Nf3.} 7. a3 $146 {[%emt 0:03:07]} (7. Nc5 $11) ({Predecessor:} 7. Bf4 a4 8. Nd2 a3 9. Rb1 axb2 10. Qc2 Nb4 11. Qb3 Qa5 12. Nb5 Na6 13. e4 d6 14. Be2 {0-1 (22) Smirnov,A (2567)-Xiong,J (2679) Chess.com INT 2019}) 7... d6 $15 {[%emt 0:04:20][%cal Bd7d6,Bd6d5,Bd5e4][%mdl 32]} 8. Na4 {[%emt 0:09:44]} Nf6 {[%emt 0:01:21] Black is slightly better.} 9. f3 {[%emt 0:02:22]} O-O {[%emt 0:03:29]} 10. e4 {[%emt 0:00:44]} e6 {[%emt 0:01:16]} 11. Be3 {[%emt 0:03:08]} d5 {[%emt 0:05:53]} 12. Bb6 {[%emt 0:07:36]} Qe8 {[%emt 0:41:32]} 13. Bc5 {[%emt 0:07:00]} dxe4 {[%emt 0:00:52]} 14. Nb6 {[%emt 0:05:06] [#]} (14. fxe4 $11 {is superior.} Nxe4 15. Bxf8 Qxf8 16. Qc2) 14... Rb8 $1 $17 {[%emt 0:01:05][%cal Oe4f3]} 15. Bxf8 {[%emt 0:12:36]} (15. Be2 exf3) 15... Qxf8 {[%emt 0:01:22]} 16. Be2 {[%emt 0:04:59]} exf3 {[%emt 0:03:38]} 17. Bxf3 {[%emt 0:00:27]} Ne5 {[%emt 0:00:14] Threatens to win with ...Nfd7.} 18. O-O {[%emt 0:03:35]} a4 {[%emt 0:01:10]} 19. Nxa4 {[%emt 0:02:06]} Nxc4 {[%emt 0:00:27] And now ...Ne3 would win.} 20. Qe2 {[%emt 0:00:21] Prevents Ne3.} b5 {[%emt 0:00:39][%mdl 1024] Black has compensation.} 21. Nac5 {[%emt 0:04:49]} Nd5 {[%emt 0:08:11]} 22. Nd3 {[%emt 0:03:32]} Nde3 {[%emt 0:01:48]} 23. Rf2 {[%emt 0:00:44]} (23. Rfe1 $15) 23... Qd6 {[%emt 0:00:45]} 24. Re1 {[%emt 0:02:17]} h5 {[%emt 0:05:22] 0x0.0012591a0629dp-1022s more active pieces.} (24... f5 $17 {...e5 is the strong threat.} 25. Nb4 Bxb2) 25. Kh1 $1 $15 {[%emt 0:02:52]} e5 {[%emt 0:08:30]} 26. Nd2 {[%emt 0:01:19]} (26. Nbc5 $1 $15) 26... Ng4 {[%emt 0:00:55]} 27. Bxg4 {[%emt 0:01:12]} Bxg4 $40 {[%emt 0:00:21][%mdl 128] Black goes for the king.} 28. Qf1 {[%emt 0:00:20]} Nxd2 {[%emt 0:02:57]} (28... Rd8 $17 29. Nxc4 bxc4) 29. Rxd2 {[%emt 0:00:04]} Rd8 {[%emt 0:00:38] Strongly threatening ...Bf5.} 30. Qf2 {[%emt 0:02:33]} (30. Rxe5 $15 Bh6 31. Rf2) 30... e4 $2 {[%emt 0:02:55]} ({Black should try} 30... Qd4 $19 31. Qxd4 Rxd4) 31. Rxe4 $11 {[%emt 0:00:26]} Bf5 {[%emt 0:00:05] [#]} ({Black should play} 31... f5 $11 32. Re1 Bh6) 32. Re3 $2 {[%emt 0:00:42][%mdl 8192]} (32. Ree2 $1 $14 {was the only good move.}) 32... Bh6 $19 {[%emt 0:00:36][%mdl 64] Skewer} 33. Rg3 {[%emt 0:00:34]} Bxd2 {[%emt 0:00:17] This bishop pair is nice.} 34. Qf4 {[%emt 0:00:33] Weighted Error Value: White=0.41/Black=0.19 (very precise)} 0-1

[Event "Saint Louis Norm Congress-IM 2022"]
[Site "Saint Louis"]
[Date "2022.05.22"]
[Round "7.2"]
[White "Grabinsky, Aaron"]
[Black "Yu, Jennifer"]
[Result "0-1"]
[ECO "D00"]
[WhiteElo "2401"]
[BlackElo "2257"]
[Annotator "TA"]
[PlyCount "70"]
[EventDate "2022.05.20"]
[EventType "tourn"]
[EventCountry "USA"]
[SourceTitle "playchess.com"]
[Source "ChessBase"]
[SourceQuality "1"]
[TimeControl "5400+30"]

{[%evp 9,70,4,8,0,0,0,0,0,0,-30,-15,-11,-1,-27,-8,-10,0,-27,-7,-14,-10,-33,0,0,0,-20,-16,-44,-19,-20,-30,-69,-47,-66,0,5,5,0,0,-77,-69,-66,-60,-68,-39,-81,-75,-67,-79,-156,-100,-95,-97,-953,-916,-29983,-29975,-6387,-6375,-6291,-1578,-1148,-1012]} 1. d4 {[%emt 0:00:02]} d5 {[%emt 0:02:16]} 2. Nc3 {[%emt 0:01:26]} Nf6 {[%emt 0:01:26]} 3. Bf4 {[%emt 0:00:05]} Bf5 {[%emt 0:01:46]} 4. f3 {[%emt 0:00:28]} h5 {[%emt 0:07:20]} 5. e3 {[%emt 0:00:31]} e6 {[%emt 0:00:16]} 6. Bd3 {[%emt 0:00:46] D00: 1 d4 d5: Unusual lines.} Bxd3 {[%emt 0:03:56]} 7. Qxd3 {[%emt 0:00:23]} a6 {[%emt 0:00:03] Against Qb5+} 8. e4 {[%emt 0:06:47] The position is equal.} c5 {[%emt 0:03:57]} 9. dxc5 {[%emt 0:03:01]} d4 {[%emt 0:16:08]} (9... Nc6 {is interesting.} 10. exd5 Nb4 11. Qe2 Nfxd5 12. O-O-O Bxc5 13. a3 Qf6) 10. O-O-O {[%emt 0:09:40]} Bxc5 {[%emt 0:00:33] [#] With the idea ...Qa5.} 11. Bxb8 $146 {[%emt 0:09:47]} ({Predecessor:} 11. Nce2 Nc6 12. Nh3 Rc8 13. a3 Nd7 14. Kb1 b5 15. Nc1 e5 16. Bg5 f6 17. Bd2 {1-0 (72) Damjanovic,V (2393)-Rustemov,A (2525) Chess.com INT 2021}) 11... Rxb8 {[%emt 0:01:07]} 12. Nce2 {[%emt 0:01:58][%cal Re2d4]} e5 {[%emt 0:03:11]} 13. h3 {[%emt 0:01:33]} Qe7 {[%emt 0:08:13]} 14. Kb1 {[%emt 0:05:49]} h4 {[%emt 0:01:50]} 15. g3 {[%emt 0:11:21]} hxg3 {[%emt 0:05:16]} 16. Nxg3 {[%emt 0:00:02]} g6 {[%emt 0:00:05] Inhibits Nf5.} 17. N1e2 {[%emt 0:00:21]} Rh4 {[%emt 0:01:24]} 18. Rdf1 {[%emt 0:05:14]} Qc7 {[%emt 0:07:57]} 19. Qd2 {[%emt 0:00:45]} Be7 {[%emt 0:02:41]} 20. f4 {[%emt 0:02:03]} Rd8 {[%emt 0:02:40]} 21. Rf3 {[%emt 0:04:03]} exf4 {[%emt 0:15:39]} (21... Nd7 $15 22. f5 Qc6 23. fxg6 fxg6) 22. Nxf4 $11 {[%emt 0:01:34]} g5 {[%emt 0:00:00][%cal Rh4f4] [#]} 23. Ng6 {[%emt 0:10:14]} Nxe4 {[%emt 0:02:53]} 24. Qe1 {[%emt 0:03:18]} Nxg3 $1 $17 {[%emt 0:01:10] The board is on fire.} ({Of course not} 24... fxg6 25. Nxe4 Qe5 26. Nf6+ Bxf6 27. Rxf6 Qxe1+ 28. Rxe1+ Kd7 29. Rxg6 $11) 25. Nxe7 {[%emt 0:01:37]} Qxe7 {[%emt 0:05:54]} 26. Qxg3 {[%emt 0:00:23]} Re4 {[%emt 0:00:17]} 27. Rf5 {[%emt 0:04:15]} f6 {[%emt 0:00:45] Threatens to win with ...Re3.} 28. a3 {[%emt 0:01:19]} Re3 {[%emt 0:02:27]} 29. Qf2 {[%emt 0:01:31]} (29. Qg4 $142) 29... Re2 {[%emt 0:01:16] Black is much more active.} (29... Rd6 $142 $1 {aiming for ...Re2.} 30. Rc5 Qe4) 30. Qf3 {[%emt 0:00:35] [#]} Rd6 $40 {[%emt 0:00:35][%cal Od4d3][%mdl 128] White must now prevent ...d3! Black is out for blood.} 31. Qg3 {[%emt 0:03:25][%mdl 8192] This move loses the game for White.} (31. Rc1 $17) 31... d3 $19 {[%emt 0:00:38][%cal Bd4d3,Bd3d2][%mdl 32]} ({Don't blunder} 31... Qe4 $2 32. Rc1 Rc6 33. Qf3 $17 (33. Qb8+ $2 Kf7 $19)) 32. Rf2 {[%emt 0:04:25]} Re1+ {[%emt 0:01:38]} 33. Rxe1 {[%emt 0:00:41]} Qxe1+ {[%emt 0:00:03] Black is clearly winning.} 34. Ka2 {[%emt 0:00:08]} Qe6+ {[%emt 0:00:18]} (34... dxc2 $142 35. Qxd6 c1=Q 36. Qb8+ Kf7 37. Rxf6+ Kxf6 38. Qf8+ Ke5 39. Qe8+ Kf4 40. Qb8+ Ke3 41. Qe5+ Kf3 42. Qf5+ Kg3 43. Qd3+ Kg2 44. Qd5+ Kxh3 45. Qf5+ Kh2 46. Qh7+ Kg1 47. Qd3 Kh2 48. Qh7+ Kg1 49. Qd3 Qe6+ 50. Qb3 {[#]} Qb1+ $3 {[%mdl 512]} 51. Kxb1 Qxb3 52. a4 g4 53. Kc1 g3 54. Kd2 Kf2 55. a5 g2 56. Kc1 g1=R+ 57. Kd2 Rd1#) 35. b3 {[%emt 0:00:09]} d2 {[%emt 0:00:02] Weighted Error Value: White=0.74/Black=0.33} 0-1

[Event "Saint Louis Norm Congress-IM 2022"]
[Site "Saint Louis"]
[Date "2022.05.22"]
[Round "7.3"]
[White "Proleiko, Julian"]
[Black "Lee, Alice"]
[Result "0-1"]
[ECO "D30"]
[WhiteElo "2204"]
[BlackElo "2344"]
[Annotator "TA"]
[PlyCount "90"]
[EventDate "2022.05.20"]
[EventType "tourn"]
[EventCountry "USA"]
[SourceTitle "playchess.com"]
[Source "ChessBase"]
[SourceQuality "1"]
[TimeControl "5400+30"]

{[%evp 9,90,16,20,27,27,22,20,20,17,12,32,14,65,56,58,61,77,60,68,33,24,17,20,15,38,41,51,31,29,-115,-145,-146,-137,-158,-178,-208,-179,-183,-151,-325,-302,-331,-256,-264,-264,-453,-452,-455,-448,-450,-443,-428,-425,-422,-286,-331,-305,-357,-351,-477,-419,-450,-483,-476,-464,-500,-485,-1914,-1949,-1281,-1079,-1079,-1077,-1011,-1009,-1009,-962,-2076,-1948,-2093,-1639,-1331,-1158]} 1. d4 {[%emt 0:00:02]} d5 {[%emt 0:00:04]} 2. c4 {[%emt 0:00:04]} e6 {[%emt 0:00:02]} 3. Nf3 {[%emt 0:00:05]} a6 {[%emt 0:00:12]} 4. Bg5 {[%emt 0:00:56]} Be7 {[%emt 0:00:06]} 5. Bxe7 {[%emt 0:00:04]} Qxe7 {[%emt 0:00:12]} 6. Nbd2 {[%emt 0:00:12] D30: Queen's Gambit Declined: Systems without Nc3.} Nf6 {[%emt 0:00:15]} 7. g3 {[%emt 0:00:16]} O-O {[%emt 0:00:14]} 8. Bg2 {[%emt 0:00:04] The position is equal.} Nbd7 {[%emt 0:06:12]} 9. O-O {[%emt 0:00:08]} c5 {[%emt 0:01:50]} 10. cxd5 {[%emt 0:00:39] [#]} Nxd5 $146 {[%emt 0:00:23]} (10... exd5 $11 11. e3 b6) ({Predecessor:} 10... exd5 11. a4 a5 12. Nb1 b6 13. Nc3 Bb7 14. Qb3 Rfd8 15. Rfd1 Rac8 16. e3 h6 {½-½ (69) Predke,A (2684)-Timofeev,A (2580) Cheliabinsk 2020}) 11. e4 $14 {[%emt 0:00:29][%cal Be2e4,Be4e5][%mdl 32]} N5f6 {[%emt 0:01:06]} 12. e5 {[%emt 0:00:36]} Nd5 {[%emt 0:00:12]} 13. Ne4 {[%emt 0:00:22]} Rd8 {[%emt 0:03:29]} 14. dxc5 {[%emt 0:01:35]} Nxc5 {[%emt 0:00:14]} 15. Nxc5 {[%emt 0:00:32]} Qxc5 {[%emt 0:00:08]} 16. Ng5 {[%emt 0:00:43]} Qe7 {[%emt 0:05:20]} 17. Qh5 {[%emt 0:00:11]} h6 {[%emt 0:00:13]} 18. Ne4 {[%emt 0:02:35]} Bd7 {[%emt 0:02:06]} 19. Rae1 {[%emt 0:00:48]} (19. Rfd1 $11 {keeps the balance.}) 19... Bb5 $17 {[%emt 0:02:08]} 20. Nd6 {[%emt 0:04:43]} Bxf1 {[%emt 0:00:11]} 21. Rxf1 {[%emt 0:01:18]} Rd7 {[%emt 0:09:48][%cal Bd8d7,Bd7c7,Bc7c1][%mdl 32]} 22. Rd1 {[%emt 0:01:16]} Nb6 {[%emt 0:02:04]} 23. Rc1 {[%emt 0:01:48]} Rb8 {[%emt 0:01:31]} 24. f4 $2 {[%emt 0:02:22] Loses the game.} (24. h4 $17) 24... Rc7 $19 {[%emt 0:02:17]} 25. Rd1 {[%emt 0:00:05]} Nc4 {[%emt 0:02:19]} ({Avoid the trap} 25... Rc2 $2 26. b4 $19) 26. b3 {[%emt 0:09:13]} Ne3 {[%emt 0:00:36]} 27. Rd3 {[%emt 0:00:21]} (27. Rd2 {is a better defense.}) 27... Rc1+ {[%emt 0:02:28]} 28. Kf2 {[%emt 0:00:04]} Nxg2 29. Kxg2 {[%emt 0:00:02]} Rc2+ {[%emt 0:01:00]} 30. Kh3 {[%emt 0:00:03]} Rxa2 {[%emt 0:00:48]} 31. Rd4 {[%emt 0:03:05]} Ra5 {[%emt 0:01:58]} 32. Qg4 {[%emt 0:02:43]} Rd8 {[%emt 0:09:48][%cal Bb8d8,Bd8d7,Bd7c7,Bc7c8][%mdl 32]} 33. b4 {[%emt 0:04:26]} Ra2 {[%emt 0:00:48]} 34. Qh5 {[%emt 0:03:57]} Rd7 {[%emt 0:04:23]} 35. Qd1 {[%emt 0:01:59]} Rc7 {[%emt 0:02:53] Prevents Nc8. aiming for ...Rcc2. Black is clearly winning.} 36. Ne4 {[%emt 0:00:36] [#] Hoping for Rd8+.} Rc8 {[%emt 0:03:00] Prevents Rd8+.} 37. Rd7 {[%emt 0:04:32]} Qe8 {[%emt 0:09:39]} ({Less strong is} 37... Qxb4 38. Nf6+ gxf6 39. Qg4+ Kh8 40. Rxf7 Rxh2+ 41. Kxh2 $18) 38. Qd6 {[%emt 0:11:24]} (38. Rd3 $142 Qc6 39. Qf3) 38... f5 {[%emt 0:02:38][%cal Re8h5]} 39. Nd2 {[%emt 0:01:15]} Qh5+ {[%emt 0:02:41]} 40. Kg2 {[%emt 0:00:00]} Qe2+ {[%emt 0:00:23]} 41. Kh3 {[%emt 0:00:07]} Qg4+ {[%emt 0:01:04]} 42. Kg2 {[%emt 0:00:05]} Rcc2 {[%emt 0:00:30] Strongly threatening ...Qe2+.} 43. Qb8+ {[%emt 0:00:37]} Kh7 {[%emt 0:00:04]} 44. Qd8 {[%emt 0:00:03] [#]} Rxd2+ $1 {[%emt 0:00:40]} 45. Rxd2 {[%emt 0:00:02]} Qd1 {[%emt 0:00:23] Weighted Error Value: White=0.66/Black=0.19 (very precise)} 0-1